[Event "Italian-ch Semifinal 2022"]
[Site "Acqui Terme"]
[Date "2022.06.15"]
[Round "3.7"]
[White "Pasini, Nicolo"]
[Black "Pisacane, Pietro"]
[Result "1-0"]
[ECO "C12"]
[WhiteElo "2227"]
[BlackElo "2138"]
[Annotator "TA"]
[PlyCount "107"]
[EventDate "2022.06.15"]
[EventType "swiss"]
[EventCountry "ITA"]
[SourceTitle "playchess.com"]
[Source "ChessBase"]
[SourceQuality "1"]
[TimeControl "40/5400+30:1800+30"]

{[%evp 20,107,10,-4,15,6,8,-8,81,74,50,35,29,-12,-6,-12,-8,-23,-18,-33,-26,-66,-58,-58,-58,-62,-58,-62,-62,-66,-66,-59,-47,-54,-33,-26,-11,-48,-18,-30,0,0,0,0,2,0,0,0,62,62,62,62,62,62,167,167,167,167,177,173,287,223,310,289,806,806,806,806,806,645,806,585,1308,126,29989,29990,29990,29991,29991,29992,29992,29993,29993,29994,29994,-775,29995,29996,29998,29999]} 1. e4 {[%emt 1:31:00]} e6 {[%emt 0:08:49]} 2. d4 {[%emt 0:00:00]} d5 {[%emt 0:00:05]} 3. Nc3 {[%emt 0:00:00]} Nf6 {[%emt 0:00:07]} 4. Bg5 {[%emt 0:00:00]} Bb4 {[%emt 0:00:05]} 5. e5 {[%emt 0:00:00]} h6 {[%emt 0:00:08]} 6. Bd2 {[%emt 0:00:00]} Bxc3 {[%emt 0:00:06]} 7. bxc3 {[%emt 0:00:00]} Ne4 {[%emt 0:00:06]} 8. Bc1 {[%emt 0:00:00]} Nxc3 {[%emt 0:00:10]} 9. Qg4 {[%emt 0:00:00]} g6 {[%emt 0:00:10]} 10. Bd3 {[%emt 0:00:00]} c5 {[%emt 0:00:17]} 11. dxc5 {[%emt 0:00:00]} Qc7 {[%emt 0:00:15] C12: French: Classical System: McCutcheon Variation.} 12. Nf3 {[%emt 0:00:00]} Nd7 {[%emt 0:00:49] [#]} 13. Be3 $146 {[%emt 0:00:00]} ({Predecessor:} 13. Qb4 Qxc5 14. Qb3 d4 15. Ba3 Qb6 16. Qc4 Qa6 17. Qb4 Nd5 18. Qd6 Qa5+ 19. Nd2 {½-½ (43) Hofer,R (2360)-Owen,K (2382) ICCF email 2014}) 13... Ne4 {[%emt 0:40:31]} ({Don't take} 13... Nxe5 14. Nxe5 Qxe5 15. O-O $14 (15. Qd4 f6 $16)) (13... Nxc5 $11 {remains equal.} 14. Qb4 N5e4) 14. Bxe4 $16 {[%emt 0:00:00]} dxe4 {[%emt 0:04:56]} 15. Qxe4 {[%emt 0:00:00]} Nxc5 {[%emt 0:01:33]} 16. Bxc5 {[%emt 0:00:00]} Qxc5 {[%emt 0:00:12]} 17. O-O {[%emt 0:00:00] Active counter play!} Bd7 {[%emt 0:04:54]} 18. Qxb7 {[%emt 0:00:00]} Bc6 {[%emt 0:02:15]} 19. Qc7 {[%emt 0:00:00][%cal Of3d4]} O-O {[%emt 0:02:14]} 20. Nd4 {[%emt 0:00:00]} Rac8 {[%emt 0:07:18]} 21. Qd6 {[%emt 0:00:00]} Qxd6 {[%emt 0:02:21]} 22. exd6 {[%emt 0:00:00]} Rfd8 {[%emt 0:01:34]} 23. Nxc6 {[%emt 0:00:00]} Rxc6 $15 {[%emt 0:00:05][%mdl 4096] Endgame KRR-KRR} 24. Rfd1 {[%emt 0:00:00]} Rxc2 {[%emt 0:01:40]} 25. Rd3 {[%emt 0:00:00]} Kf8 {[%emt 0:03:38]} 26. g3 {[%emt 0:00:00]} Rc6 {[%emt 0:04:03]} 27. Rad1 $1 {[%emt 0:00:00]} Ke8 {[%emt 0:00:49]} 28. h4 {[%emt 0:00:00]} h5 {[%emt 0:01:51]} (28... Ra6 $5 {[%cal Ra6a2]}) 29. Kg2 {[%emt 0:00:00]} Kd7 {[%emt 0:04:44]} 30. Rf3 {[%emt 0:00:00]} f5 {[%emt 0:01:11]} 31. Ra3 {[%emt 0:00:00]} Ra8 {[%emt 0:03:54]} 32. Rb1 {[%emt 0:00:00]} Kxd6 {[%emt 0:02:50]} 33. Rb7 {[%emt 0:00:00]} Rc7 {[%emt 0:02:30] Inhibits Rg7.} (33... Ke5 $11) 34. Ra6+ $14 {[%emt 0:00:00]} Rc6 {[%emt 0:00:39]} 35. Rxc6+ {[%emt 0:00:21]} Kxc6 {[%emt 0:00:02] KR-KR} 36. Rg7 {[%emt 0:00:08]} a5 {[%emt 0:00:37] White now steadily converts the win.} (36... Kd6 $14) 37. Rxg6 $18 {[%emt 0:00:47]} Kd5 {[%emt 0:00:19]} 38. Rh6 {[%emt 0:00:37]} Rb8 {[%emt 0:00:42]} 39. Rxh5 {[%emt 0:00:14]} Rb2 {[%emt 0:00:46]} (39... Ke5 $142) 40. g4 $1 {[%emt 0:00:00]} Ke5 {[%emt 0:00:00]} ({Not} 40... Rxa2 41. gxf5 Ke5 42. fxe6+ Kxe6 43. Kg3 $14) 41. g5 $1 {[%emt 0:04:26]} Rxa2 $2 {[%emt 0:16:24]} (41... Rc2 42. Rh7 Rc4) 42. g6 $1 {[%emt 0:07:33] g7 would kill now.} Kf6 {[%emt 0:02:22]} 43. Rg5 {[%emt 0:00:07] Threatening mate with g7.} Kg7 {[%emt 0:00:11] [#]} 44. h5 $1 {[%emt 0:00:21][%cal Bh4h5,Bh5h6][%mdl 32] Hoping for Rg3.} Ra4 {[%emt 0:05:35] ( -> ...Rg4+)} 45. h6+ $1 {[%emt 0:00:07]} Kg8 {[%emt 0:01:48] ...Rg4+ is the strong threat.} 46. Kh3 {[%emt 0:01:11] Inhibits Rg4.} (46. Kg3 $18 {is the precise move to win.} Rc4 47. f4) 46... Rg4 {[%emt 0:03:54][%mdl 8192]} (46... Ra1 $16) 47. Rxg4 {[%emt 0:00:06]} fxg4+ {[%emt 0:00:10]} 48. Kxg4 {[%emt 0:00:05] K3P-KPP} a4 {[%emt 0:00:13] [#]} 49. Kg5 $1 {[%emt 0:00:12]} a3 {[%emt 0:00:42]} 50. Kf6 {[%emt 0:00:08]} a2 {[%emt 0:00:42]} 51. h7+ {[%emt 0:00:05]} Kh8 {[%emt 0:00:14]} 52. g7+ {[%emt 0:00:09]} Kxh7 {[%emt 0:00:08]} 53. Kf7 {[%emt 0:00:06]} a1=Q {[%emt 0:00:33]} 54. g8=Q+ {[%emt 0:00:10] Weighted Error Value: White=0.22 (precise) /Black=0.41} 1-0

[Event "Italian-ch Semifinal 2022"]
[Site "Acqui Terme"]
[Date "2022.06.15"]
[Round "3.8"]
[White "Caprino, Marco"]
[Black "Cocchi, Andrea"]
[Result "1/2-1/2"]
[ECO "B80"]
[WhiteElo "2071"]
[BlackElo "2205"]
[Annotator "TA"]
[PlyCount "54"]
[EventDate "2022.06.15"]
[EventType "swiss"]
[EventCountry "ITA"]
[SourceTitle "playchess.com"]
[Source "ChessBase"]
[SourceQuality "1"]
[TimeControl "40/5400+30:1800+30"]

{[%evp 23,54,10,19,-7,0,0,0,0,0,-21,-18,-22,-21,-23,-18,-30,0,0,0,0,0,0,0,0,0,0,0,0,0,0,0,0,0]} 1. e4 {[%emt 0:00:03]} c5 {[%emt 0:01:13]} 2. Nc3 {[%emt 0:00:05]} e6 {[%emt 0:02:38]} 3. Nge2 {[%emt 0:00:52]} d6 {[%emt 0:05:12]} 4. g3 {[%emt 0:00:22]} Nf6 {[%emt 0:00:14]} 5. Bg2 {[%emt 0:00:06]} Nc6 {[%emt 0:03:13]} 6. d4 {[%emt 0:00:19]} cxd4 {[%emt 0:00:39]} 7. Nxd4 {[%emt 0:00:07]} Bd7 {[%emt 0:01:02]} 8. O-O {[%emt 0:00:31]} Be7 {[%emt 0:01:54]} 9. Re1 {[%emt 0:05:45]} a6 {[%emt 0:10:09]} 10. Nxc6 {[%emt 0:07:02]} Bxc6 {[%emt 0:08:34]} 11. e5 {[%emt 0:16:05]} dxe5 {[%emt 0:00:56]} 12. Bxc6+ {[%emt 0:00:08]} bxc6 {[%emt 0:00:06]} 13. Qe2 {[%emt 0:03:18] B80: Sicilian Scheveningen: 6 g3 and 6 Be3, including English Attack.} Nd5 {[%emt 0:07:22] [#]} 14. Qxe5 $146 {[%emt 0:00:54]} ({Predecessor:} 14. Qc4 Qc7 15. Na4 O-O 16. Bd2 Rfd8 17. Rad1 Qb8 18. a3 Qb5 19. Qxb5 cxb5 20. Nc3 Nxc3 21. Bxc3 {½-½ (51) Berg,G (2052)-La Comb,J Parsippany 2012}) 14... Bf6 {[%emt 0:00:38]} 15. Qe4 {[%emt 0:00:16]} O-O {[%emt 0:04:20]} 16. Na4 {[%emt 0:06:10]} Qa5 {[%emt 0:04:16] Against Bd2} 17. c3 {[%emt 0:00:52]} Rfd8 {[%emt 0:02:42]} 18. Be3 {[%emt 0:04:07] Against c5} Nxe3 {[%emt 0:04:11]} 19. Rxe3 {[%emt 0:00:11][%cal Be1e3,Be3a3,Ba3b3,Bb3b6,Bb6c6][%mdl 32]} Bd4 {[%emt 0:00:38]} 20. cxd4 {[%emt 0:05:32] The position is equal.} Qxa4 {[%emt 0:00:02]} 21. Ra3 {[%emt 0:03:44]} Qxd4 {[%emt 0:04:26]} (21... Qb4 {with more complications.} 22. Rb3 Qd2 23. Qxc6 Qxd4 24. Rc1 g6) 22. Qxd4 {[%emt 0:00:06]} Rxd4 $11 {[%emt 0:00:04] KRR-KRR} 23. Rc1 {[%emt 0:00:08]} Rd6 {[%emt 0:03:48]} 24. Rb3 {[%emt 0:00:37]} g5 {[%emt 0:07:15]} 25. Rb6 {[%emt 0:00:39]} a5 {[%emt 0:01:42]} 26. Rbxc6 {[%emt 0:00:24]} Rd2 {[%emt 0:00:58]} 27. R1c2 {[%emt 0:00:07]} Rd5 {[%emt 0:00:40] A balanced but interesting game.  Weighted Error Value: White=0.04 (flawless) /Black=0.03 (flawless)} 1/2-1/2

[Event "Italian-ch Semifinal 2022"]
[Site "Acqui Terme"]
[Date "2022.06.15"]
[Round "3.9"]
[White "Pegno, Mattia"]
[Black "Misiano, Franco"]
[Result "0-1"]
[ECO "D14"]
[WhiteElo "2065"]
[BlackElo "2195"]
[Annotator "TA"]
[PlyCount "76"]
[EventDate "2022.06.15"]
[EventType "swiss"]
[EventCountry "ITA"]
[SourceTitle "playchess.com"]
[Source "ChessBase"]
[SourceQuality "1"]
[TimeControl "40/5400+30:1800+30"]

{[%evp 16,76,14,23,24,18,15,18,29,27,43,-4,0,0,6,-35,0,-10,0,0,0,-18,-11,-13,-5,-39,-34,-36,-19,-39,-29,-27,-31,-20,-20,-37,-21,-72,-76,-75,-75,-82,-76,-129,-129,-286,-295,-493,-482,-442,-442,-727,-693,-965,-830,-776,-566,-29980,-29981,-29981,-29982,-29994,-29995]} 1. d4 {[%emt 0:00:05]} Nf6 {[%emt 0:00:09]} 2. Nf3 {[%emt 0:00:10]} d5 {[%emt 0:00:40]} 3. c4 {[%emt 0:00:16]} c6 {[%emt 0:00:05]} 4. cxd5 {[%emt 0:00:37]} cxd5 {[%emt 0:00:04]} 5. Nc3 {[%emt 0:00:10]} Nc6 {[%emt 0:00:11]} 6. Bf4 {[%emt 0:00:11]} Bf5 {[%emt 0:00:09]} 7. Qb3 {[%emt 0:03:54]} Na5 {[%emt 0:01:24]} 8. Qa4+ {[%emt 0:00:23]} Bd7 {[%emt 0:00:24]} 9. Qc2 {[%emt 0:00:23]} Rc8 {[%emt 0:04:12] D14: Slav Defence: Exchange variation with ...Bf5.} 10. e3 {[%emt 0:11:53]} e6 {[%emt 0:09:04][%cal Of6e4]} 11. Bd3 {[%emt 0:28:20] Inhibits Ne4.} Nc4 {[%emt 0:05:00] [#] The position is equal. Recently 11...Bb4 got a lot of attention.} 12. Ne5 $146 {[%emt 0:20:42]} ({Predecessor:} 12. O-O Be7 13. h3 O-O 14. Ne5 b5 15. Qe2 Be8 16. a4 a6 17. axb5 axb5 18. Rfc1 Qb6 19. Rf1 Qd8 20. Rfc1 Qb6 21. Kh2 Nd7 22. b3 Ndxe5 23. dxe5 {½-½ (23) Li,C (2686)-Paragua,M (2550) Manila 2013}) 12... b5 {[%emt 0:02:44]} 13. Bxc4 {[%emt 0:06:15]} (13. Qe2 $14) 13... bxc4 $11 {[%emt 0:03:10]} 14. O-O {[%emt 0:00:53]} Be7 {[%emt 0:01:31]} 15. f3 {[%emt 0:02:18]} O-O {[%emt 0:01:33]} 16. Bg5 {[%emt 0:05:35]} Ne8 {[%emt 0:06:49]} 17. Bxe7 {[%emt 0:00:30]} Qxe7 {[%emt 0:00:04]} 18. e4 {[%emt 0:07:42]} Nc7 {[%emt 0:02:51]} 19. Ng4 {[%emt 0:07:30]} f6 {[%emt 0:03:03][%cal Bf7f6,Bf6f5][%mdl 32]} 20. e5 {[%emt 0:02:10]} f5 $1 {[%emt 0:01:00]} 21. Nf2 {[%emt 0:00:13][%cal Bg4f2,Bf2h3,Bh3f4][%mdl 32]} Qb4 {[%emt 0:03:10]} 22. Nh3 {[%emt 0:00:42]} Nb5 {[%emt 0:02:04]} 23. Nxb5 {[%emt 0:00:17]} Bxb5 {[%emt 0:00:16]} 24. Qc3 {[%emt 0:00:05]} a5 {[%emt 0:01:17]} 25. Nf4 {[%emt 0:00:29]} Bd7 {[%emt 0:00:23]} 26. a3 {[%emt 0:01:10]} (26. Qxb4 $11 {remains equal.} axb4 27. a3) 26... Qxc3 $17 {[%emt 0:00:44]} 27. bxc3 {[%emt 0:00:06]} Rb8 {[%emt 0:00:09]} 28. Rab1 {[%emt 0:00:24]} Rfc8 {[%emt 0:02:18]} 29. Ne2 {[%emt 0:01:04]} ({Better is} 29. Rfc1) 29... Rb3 {[%emt 0:00:57]} 30. Rxb3 $2 {[%emt 0:00:21] [#] Loses the game.} (30. Ra1 $17 {is a better defense.}) 30... cxb3 {[%emt 0:00:05][%mdl 4096] Endgame KRB-KRN} 31. Rb1 $2 {[%emt 0:00:35]} (31. Kf2 g5 32. f4) 31... a4 $19 {[%emt 0:00:13]} 32. Kf2 {[%emt 0:00:32]} Bb5 {[%emt 0:00:22]} 33. Nf4 {[%emt 0:00:33]} (33. Rb2 $142) 33... Rxc3 {[%emt 0:01:15]} 34. Ke1 {[%emt 0:00:26]} Rc2 {[%emt 0:03:42] Against Rb2} 35. h4 {[%emt 0:00:12]} Kf7 {[%emt 0:00:41]} 36. g3 {[%emt 0:00:48]} Rh2 {[%emt 0:00:51] Black mates.} 37. Rc1 {[%emt 0:00:33]} b2 {[%emt 0:00:18][%cal Rb2c1]} 38. Rc7+ {[%emt 0:00:30]} Ke8 {[%emt 0:46:38] Weighted Error Value: White=0.63/Black=0.17 (very precise)} 0-1

[Event "Italian-ch Semifinal 2022"]
[Site "Acqui Terme"]
[Date "2022.06.15"]
[Round "3.10"]
[White "Floris, Federico"]
[Black "Andreoni, Giuseppe"]
[Result "1/2-1/2"]
[ECO "C54"]
[WhiteElo "1950"]
[BlackElo "2170"]
[Annotator "TA"]
[PlyCount "48"]
[EventDate "2022.06.15"]
[EventType "swiss"]
[EventCountry "ITA"]
[SourceTitle "playchess.com"]
[Source "ChessBase"]
[SourceQuality "1"]
[TimeControl "40/5400+30:1800+30"]

{[%evp 17,48,0,0,0,15,0,0,0,38,42,60,32,77,23,49,14,20,9,6,0,0,0,15,0,22,21,46,0,25,0,37,0,0]} 1. e4 {[%emt 0:00:05]} e5 {[%emt 0:00:19]} 2. Nf3 {[%emt 0:00:08]} Nc6 {[%emt 0:00:03]} 3. Bc4 {[%emt 0:00:08]} Bc5 {[%emt 0:00:10]} 4. c3 {[%emt 0:00:06]} Nf6 {[%emt 0:00:06]} 5. d4 {[%emt 0:00:12]} exd4 {[%emt 0:00:06]} 6. e5 {[%emt 0:00:07]} d5 {[%emt 0:01:26]} 7. Bb5 {[%emt 0:00:11]} Ne4 {[%emt 0:00:20]} 8. cxd4 {[%emt 0:00:13]} Bb6 {[%emt 0:01:23]} 9. Nc3 {[%emt 0:00:12]} O-O {[%emt 0:01:53]} 10. Be3 {[%emt 0:00:07] C54: Giuoco Piano: 4 c3 Nf6, main lines with 5 d4 and 5 d3.} f5 {[%emt 0:01:36] ...f4 is the strong threat.} 11. exf6 {[%emt 0:02:10] 11.g3 is vanishing.} (11. g3 {with more complications.} Ba5 12. Rc1 f4 13. gxf4 Ne7 14. Rg1) 11... Nxc3 {[%emt 0:19:45]} 12. bxc3 {[%emt 0:00:15] [#] Strongly threatening Bxc6.} Rxf6 $146 {[%emt 0:01:34]} ({Predecessor:} 12... Qxf6 13. O-O Bg4 14. Be2 Bxf3 15. Bxf3 Rad8 16. Be2 Na5 17. a4 c6 18. Bd3 Bc7 {1-0 (42) Erigaisi,A (2632)-Ganguly,S (2627) Wijk aan Zee 2022}) 13. O-O {[%emt 0:03:06]} Qd6 {[%emt 0:32:21]} 14. a4 {[%emt 0:08:52]} a6 {[%emt 0:16:39]} 15. Be2 {[%emt 0:13:32]} (15. Bxc6 $16 {[%cal Oa4a5] Threatens to win with a5!} bxc6 16. Bg5) 15... Bf5 {[%emt 0:01:53]} 16. Qb3 {[%emt 0:15:30]} Re8 {[%emt 0:02:54]} 17. Rae1 {[%emt 0:01:46]} h6 {[%emt 0:01:48]} 18. Bc1 {[%emt 0:02:20]} Rfe6 {[%emt 0:03:26]} 19. Be3 {[%emt 0:05:34]} Kh8 {[%emt 0:03:37]} 20. Qa2 {[%emt 0:06:03]} Be4 {[%emt 0:04:17]} 21. Nd2 {[%emt 0:04:48]} Bh7 {[%emt 0:00:26]} 22. Nf3 {[%emt 0:07:19]} (22. Bf3 $14 {was preferrable.}) 22... Be4 {[%emt 0:00:13]} 23. Nd2 {[%emt 0:00:36]} Bh7 {[%emt 0:00:11]} 24. Nf3 {[%emt 0:00:40]} Be4 {[%emt 0:06:04] Weighted Error Value: White=0.20 (precise) /Black=0.14 (very precise)} 1/2-1/2

[Event "Italian-ch Semifinal 2022"]
[Site "Acqui Terme"]
[Date "2022.06.15"]
[Round "4.1"]
[White "Boraso, Alessio"]
[Black "Barp, Alberto"]
[Result "1/2-1/2"]
[ECO "C47"]
[WhiteElo "2287"]
[BlackElo "2384"]
[Annotator "TA"]
[PlyCount "39"]
[EventDate "2022.06.15"]
[EventType "swiss"]
[EventCountry "ITA"]
[SourceTitle "playchess.com"]
[Source "ChessBase"]
[SourceQuality "1"]
[TimeControl "40/5400+30:1800+30"]

{[%evp 9,39,-3,-3,-8,-12,-8,0,-6,-6,-6,-6,-6,-6,-6,-6,-6,2,-6,-6,-8,-9,-10,-7,-8,-6,-7,-8,-10,-14,-12,-10,-13]} 1. e4 {[%emt 0:02:23]} e5 {[%emt 0:00:19]} 2. Nf3 {[%emt 0:00:32]} Nc6 {[%emt 0:00:04]} 3. Nc3 {[%emt 0:00:07]} Nf6 {[%emt 0:00:05]} 4. a3 {[%emt 0:00:03]} d5 {[%emt 0:00:36]} 5. Bb5 {[%emt 0:00:18]} Nxe4 {[%emt 0:00:05] The position is equal.} 6. Qe2 {[%emt 0:00:19] C47: Scotch Four Knights and Four Knights with 4 g3.} Qd6 {[%emt 0:06:51] With the idea ...Nxc3.} 7. Nxe4 {[%emt 0:00:31]} dxe4 {[%emt 0:00:04]} 8. Qxe4 {[%emt 0:00:07]} Bd7 {[%emt 0:00:03]} 9. d4 {[%emt 0:00:26]} O-O-O {[%emt 0:00:22]} 10. dxe5 {[%emt 0:00:44] [#]} ({Don't go for} 10. Nxe5 $2 Nxe5 11. Bg5 (11. dxe5 $2 {gets mated.} Qd1+ 12. Kxd1 Bg4+ 13. Ke1 Rd1#) 11... Bxb5 $19) 10... Nxe5 {[%emt 0:00:14]} 11. Bxd7+ {[%emt 0:00:40]} Rxd7 {[%emt 0:00:17][%csl Gd7][%cal Rd6d1]} 12. O-O {[%emt 0:01:36]} Nxf3+ {[%emt 0:00:08]} 13. Qxf3 {[%emt 0:00:07]} Qd5 {[%emt 0:00:02] [#]} 14. Qxd5 $146 {[%emt 0:01:02]} ({Predecessor:} 14. Qg3 h5 15. Bf4 h4 16. Qg4 h3 17. gxh3 f5 18. Qg6 Bc5 19. Rae1 Qf3 20. Qxf5 {1-0 (66) Tari,A (2634)-Potkin,V (2583) Moscow 2019}) 14... Rxd5 {[%emt 0:00:17]} 15. Be3 {[%emt 0:00:21]} Bc5 {[%emt 0:06:50]} 16. Rfd1 {[%emt 0:18:12]} Rhd8 {[%emt 0:11:42]} 17. Rxd5 {[%emt 0:00:36]} Rxd5 {[%emt 0:00:08]} 18. Bxc5 {[%emt 0:05:24]} Rxc5 {[%emt 0:00:08]} 19. Rc1 {[%emt 0:00:08]} Rb5 {[%emt 0:08:26]} 20. Rb1 {[%emt 0:02:38] An interesting draw.  Weighted Error Value: White=0.00 (flawless) /Black=0.00 (flawless)} 1/2-1/2

[Event "Italian-ch Semifinal 2022"]
[Site "Acqui Terme"]
[Date "2022.06.15"]
[Round "4.2"]
[White "Lettieri, Giuseppe"]
[Black "Palozza, Christian"]
[Result "1-0"]
[ECO "A13"]
[WhiteElo "2445"]
[BlackElo "2284"]
[Annotator "TA"]
[PlyCount "91"]
[EventDate "2022.06.15"]
[EventType "swiss"]
[EventCountry "ITA"]
[SourceTitle "playchess.com"]
[Source "ChessBase"]
[SourceQuality "1"]
[TimeControl "40/5400+30:1800+30"]

{[%evp 14,90,3,20,14,-6,14,0,0,-16,5,-15,-30,-24,0,0,0,0,0,0,5,-59,0,0,0,0,0,0,0,0,0,0,5,7,34,37,44,47,45,23,43,13,166,152,178,179,166,181,213,119,120,117,110,103,266,266,266,266,266,253,10613,6713,6633,6713,6203,6179,5381,5052,1492,1774,1642,1401,29991,29992,29992,29990,29998,29999,29999]} 1. Nf3 {[%emt 0:00:07]} Nf6 {[%emt 0:01:01]} 2. g3 {[%emt 0:00:05]} d5 {[%emt 0:00:05]} 3. Bg2 {[%emt 0:00:05]} e6 {[%emt 0:00:39]} 4. O-O {[%emt 0:00:06]} c5 {[%emt 0:00:41]} 5. c4 {[%emt 0:07:19]} d4 {[%emt 0:00:07]} 6. e3 {[%emt 0:07:31]} Nc6 {[%emt 0:00:07]} 7. exd4 {[%emt 0:00:06]} cxd4 {[%emt 0:00:05]} 8. d3 {[%emt 0:02:11]} Bd6 {[%emt 0:00:13] A13: English Opening: 1...e6.} 9. Re1 {[%emt 0:04:34]} O-O {[%emt 0:00:40]} 10. a3 {[%emt 0:03:33] is the legacy move (10.Bg5).} a5 {[%emt 0:00:08] Inhibits b4. The position is equal.} 11. Nbd2 {[%emt 0:00:58]} Re8 {[%emt 0:05:50]} 12. Rb1 {[%emt 0:02:34]} (12. Ng5 {looks sharper.} Be7 13. f4 a4 14. Nde4) 12... h6 {[%emt 0:03:21] [#]} 13. Nh4 $146 {[%emt 0:21:45]} ({Predecessor:} 13. Qc2 Nd7 14. Ne4 Bf8 15. c5 a4 16. Bd2 Qc7 17. Qc4 b5 18. cxb6 Nxb6 19. Qc1 {½-½ (47) Wojtaszek,R (2724)-Oleksienko,M (2618) Lublin 2014}) 13... g5 {[%emt 0:06:23][%cal Bg7g5,Bg5g4][%mdl 32]} 14. Nhf3 {[%emt 0:00:22]} e5 {[%emt 0:01:12]} 15. h4 {[%emt 0:01:06]} g4 {[%emt 0:04:05]} 16. Nh2 {[%emt 0:00:08]} Kh7 {[%emt 0:02:35]} (16... h5 $5 {[%cal Rc8f5]}) 17. h5 {[%emt 0:13:02]} (17. Bd5 $11) 17... Rg8 {[%emt 0:05:30]} ({Black should try} 17... Ra6 $1 $15) 18. b4 $11 {[%emt 0:07:54]} axb4 {[%emt 0:01:39]} 19. axb4 {[%emt 0:00:01]} Nxb4 {[%emt 0:21:15]} 20. c5 $1 {[%emt 0:00:25]} Bxc5 {[%emt 0:00:05] Threatens to win with ...Nbd5.} 21. Rxe5 {[%emt 0:00:55][%cal Be1e5,Be5b5,Bb5b7][%mdl 32]} Bd6 {[%emt 0:02:49]} (21... Nxd3 $2 22. Qc2 Bd6 23. Qxd3+ Kg7 24. Reb5 $18) 22. Rb5 {[%emt 0:03:20][%csl LRb4,LRb7]} Na2 $132 {[%emt 0:04:45][%mdl 2048] ...Nc3 is the strong threat. Black is fighting back} (22... Nxd3 $2 23. Qc2 $18) 23. Ne4 {[%emt 0:02:34]} Nxc1 {[%emt 0:02:49]} (23... Be6 $5 {[%cal Rf6e4]}) 24. Qxc1 {[%emt 0:01:27]} Be6 {[%emt 0:04:13]} 25. Rxb7 {[%emt 0:03:58] Black must now prevent Qc6.} Rc8 {[%emt 0:02:22] Inhibits Qc6.} 26. Qb2 {[%emt 0:01:21]} (26. Qxc8 $5 Qxc8 27. Nxf6+ Kh8 28. Nxg8 Kxg8 29. Be4 $14) 26... Nxh5 {[%emt 0:00:28]} 27. Nf1 {[%emt 0:05:10]} Bf8 $2 {[%emt 0:03:11] [#]} (27... Be7 $11 {and Black is okay.}) 28. Qb5 $1 $18 {[%emt 0:01:20]} Nf6 {[%emt 0:02:07]} 29. Qe5 {[%emt 0:00:23][%csl LRe6,LRf6]} Bg7 {[%emt 0:00:17]} 30. Nd6 {[%emt 0:03:11]} Rc7 {[%emt 0:08:30] [#]} 31. Nxf7 $1 {[%emt 0:01:38][%mdl 512]} Rxf7 $16 {[%emt 0:01:45]} 32. Qxe6 {[%emt 0:00:01] White is more active.} Rxb7 {[%emt 0:00:07]} 33. Rxb7 {[%emt 0:00:03]} Re8 $2 {[%emt 0:01:09]} (33... Kh8 $16) 34. Qf7 $18 {[%emt 0:00:34][%csl Gb7][%cal Rf7g7]} Rg8 {[%emt 0:00:33]} 35. Nd2 {[%emt 0:01:06]} Kh8 {[%emt 0:03:09]} 36. Ne4 {[%emt 0:01:07]} Nxe4 $2 {[%emt 0:00:31]} (36... Nh7 37. Qg6 Nf6) 37. Bxe4 {[%emt 0:00:01]} Qg5 {[%emt 0:00:31]} 38. Re7 {[%emt 0:01:14] White wants to mate with Re8.} Rf8 {[%emt 0:01:37]} 39. Re8 {[%emt 0:01:38]} Qc5 {[%emt 0:00:06]} 40. Qg6 {[%emt 0:00:00][%csl Ge4][%cal Rg6h7]} Kg8 {[%emt 0:00:00]} 41. Re6 {[%emt 0:21:41] Threatening mate with Qh7+.} Qc1+ {[%emt 0:12:26]} 42. Kg2 {[%emt 0:00:20]} Qd2 {[%emt 0:00:24]} 43. Qh7+ {[%emt 0:00:41] White mates.} Kf7 {[%emt 0:00:02]} 44. Re5 {[%emt 0:01:43]} Qd1 {[%emt 0:02:09]} 45. Bd5+ {[%emt 0:00:52]} Kf6 {[%emt 0:00:06]} 46. Qf5# {[%emt 0:00:07] Weighted Error Value: White=0.11 (very precise) /Black=0.47} 1-0